{"text_format":"3","workbook":"xlsx","n_sheets":14,"sheets":["näpunäited","kokkuvõte","jaan","veebr","märts","apr","mai","juuni","juuli","aug","sept","okt","nov","dets"],"not_rendered":{"charts":1,"defined_names":27},"read":"whole","date_system":"1900"}

{"sheet":"näpunäited","index":0,"n_rows":18,"n_cols":1,"rows_kept":18}
["MALLI NÄPUNÄITED"]
["Kuidas saab kulude kokkuvõttelehte ja igakuiste kulude üksikasjade vaadet mugavalt vaheldumisi avada?"]
["Kiiresti konkreetse kuu kulude vaatamiseks klõpsake diagrammi kohal vastavat navigeerimislinki (nt navigeerimislink Jaan lahtris B2). Seejärel klõpsake kulude kokkuvõttelehele naasmiseks navigeerimislinki Kokkuvõte lahtris D1. "]
["Sellele näpunäidete töölehele naasmiseks valige kokkuvõtte töölehel N2. Kõikide kuude koondtöölehel valige E1."]
["Kuidas lisada lehele Kulude kokkuvõte uus kulutüüp või uued kulud?"]
["Nii diagrammi all olev kulude kokkuvõte kui ka igakuiste kulude üksikasjad on Exceli tabelid. Exceli tabelisse ridade lisamiseks tehke järgmist."]
[{"$f":"ROW(A1)&\". Kui tabelis pole summarida, alustage tabeli alla tippimist ja tabel laiendatakse sisestusklahvi (Enter) või tabeldusklahvi (Tab) klõpsamisel automaatselt.\"","v":"1. Kui tabelis pole summarida, alustage tabeli alla tippimist ja tabel laiendatakse sisestusklahvi (Enter) või tabeldusklahvi (Tab) klõpsamisel automaatselt."}]
[{"$f":"ROW(A2)&\". Asetage lahtrikursor viimasesse summarea kohal asuvasse lahtrisse (nt viimase kulu kogusumma lahtrisse) ja seejärel vajutage tabeldusklahvi (Tab).\"","v":"2. Asetage lahtrikursor viimasesse summarea kohal asuvasse lahtrisse (nt viimase kulu kogusumma lahtrisse) ja seejärel vajutage tabeldusklahvi (Tab)."}]
[{"$f":"ROW(A3)&\". Tehke tabelis paremklõps ja osutage hüpikmenüüs käsule Lisa. Seejärel klõpsake käsku Tabeliread üles või Tabeliread alla.\"","v":"3. Tehke tabelis paremklõps ja osutage hüpikmenüüs käsule Lisa. Seejärel klõpsake käsku Tabeliread üles või Tabeliread alla."}]
[{"$f":"ROW(A4)&\". Viige kursor tabeli paremas allnurgas tabeli suuruse muutmise pidemele ja lohistage seda allapoole, et suurendada saadaolevate tabeliridade arvu.\"","v":"4. Viige kursor tabeli paremas allnurgas tabeli suuruse muutmise pidemele ja lohistage seda allapoole, et suurendada saadaolevate tabeliridade arvu."}]
["Sisestage kulu töölehel kokkuvõte tabeli KuludeKokkuvõte veergu Kulud."]
["Lisage kulusumma iga kulutüübi juurde selle kuu töölehel, millega kulu seotud on."]
["Näiteks. „Kulu 1“ esineb jaanuarist juunini ja detsembris. "]
[{"$f":"ROW(A1)&\". Kokkuvõttetöölehe tabeli KuludeKokkuvõte jaotisse Kulu lisatakse Kulu 1 (kulutüübi pealkirjana).\"","v":"1. Kokkuvõttetöölehe tabeli KuludeKokkuvõte jaotisse Kulu lisatakse Kulu 1 (kulutüübi pealkirjana)."}]
[{"$f":"ROW(A2)&\". Iga kuu kohta, kus kulu tekib, sisestage vastava kuu töölehele kulusumma.\"","v":"2. Iga kuu kohta, kus kulu tekib, sisestage vastava kuu töölehele kulusumma."}]
[{"$f":"ROW(A3)&\". Töölehe KuludeKokkuvõte kulutüüp loob iga kuu töölehe veeru Kategooria jaoks kategoorialoendi.\"","v":"3. Töölehe KuludeKokkuvõte kulutüüp loob iga kuu töölehe veeru Kategooria jaoks kategoorialoendi."}]
[{"$f":"ROW(A4)&\". Sisestatud kulusummale vastava kulutüübi valimiseks kasutage veerus Kategooria olevat kategoorialoendit.\"","v":"4. Sisestatud kulusummale vastava kulutüübi valimiseks kasutage veerus Kategooria olevat kategoorialoendit."}]
[{"$f":"ROW(A5)&\". Mis tahes kuusse uute kulude lisamiseks lisage kokkuvõttetöölehe tabelisse KuludeKokkuvõte uus rida ja seejärel sisestage vastava kuu töölehele kulu üksikasjad.\"","v":"5. Mis tahes kuusse uute kulude lisamiseks lisage kokkuvõttetöölehe tabelisse KuludeKokkuvõte uus rida ja seejärel sisestage vastava kuu töölehele kulu üksikasjad."}]

{"sheet":"kokkuvõte","index":1,"n_rows":10,"n_cols":15,"rows_kept":10}
["KULUTRENDID"]
[null,"Jaan","Veebr","Märts","Apr","Mai","Juuni","Juuli","Aug","Sept","Okt","Nov","Dets","Näpunäited"]
[]
["Kulud","Jaan","Veebr","Märts","Apr","Mai","Juuni","Juuli","Aug","Sept","Okt","Nov","Dets","Kokku","Trend"]
["Kulu 1",{"$f":"SUMIFS(KuluJaan[Summa],KuluJaan[Kategooria],KuluKokkuvõte[Kulud])","v":{"v":33,"d":"33.00"}},{"$f":"SUMIFS(KuluVeeb[Summa],KuluVeeb[Kategooria],KuluKokkuvõte[Kulud])","v":{"v":375,"d":"375.00"}},{"$f":"SUMIFS(KuluMär[Summa],KuluMär[Kategooria],KuluKokkuvõte[Kulud])","v":{"v":33,"d":"33.00"}},{"$f":"SUMIFS(KuluApr[Summa],KuluApr[Kategooria],KuluKokkuvõte[Kulud])","v":{"v":45,"d":"45.00"}},{"$f":"SUMIFS(KuluMai[Summa],KuluMai[Kategooria],KuluKokkuvõte[Kulud])","v":{"v":375,"d":"375.00"}},{"$f":"SUMIFS(KuluJuuni[Summa],KuluJuuni[Kategooria],KuluKokkuvõte[Kulud])","v":{"v":201,"d":"201.00"}},{"$f":"SUMIFS(KuluJuuli[Summa],KuluJuuli[Kategooria],KuluKokkuvõte[Kulud])","v":{"v":0,"d":"0.00"}},{"$f":"SUMIFS(KuluAug[Summa],KuluAug[Kategooria],KuluKokkuvõte[Kulud])","v":{"v":0,"d":"0.00"}},{"$f":"SUMIFS(KuluSep[Summa],KuluSep[Kategooria],KuluKokkuvõte[Kulud])","v":{"v":0,"d":"0.00"}},{"$f":"SUMIFS(KuluOkt[Summa],KuluOkt[Kategooria],KuluKokkuvõte[Kulud])","v":{"v":0,"d":"0.00"}},{"$f":"SUMIFS(KuluNov[Summa],KuluNov[Kategooria],KuluKokkuvõte[Kulud])","v":{"v":0,"d":"0.00"}},{"$f":"SUMIFS(KuluDets[Summa],KuluDets[Kategooria],KuluKokkuvõte[Kulud])","v":{"v":201,"d":"201.00"}},{"$f":"SUM(KuluKokkuvõte[[#This Row],[Jaan]:[Dets]])","v":{"v":1263,"d":"1,263.00"}}]
["Kulu 2",{"$f":"SUMIFS(KuluJaan[Summa],KuluJaan[Kategooria],KuluKokkuvõte[Kulud])","v":{"v":238,"d":"238.00"}},{"$f":"SUMIFS(KuluVeeb[Summa],KuluVeeb[Kategooria],KuluKokkuvõte[Kulud])","v":{"v":238,"d":"238.00"}},{"$f":"SUMIFS(KuluMär[Summa],KuluMär[Kategooria],KuluKokkuvõte[Kulud])","v":{"v":238,"d":"238.00"}},{"$f":"SUMIFS(KuluApr[Summa],KuluApr[Kategooria],KuluKokkuvõte[Kulud])","v":{"v":123,"d":"123.00"}},{"$f":"SUMIFS(KuluMai[Summa],KuluMai[Kategooria],KuluKokkuvõte[Kulud])","v":{"v":111,"d":"111.00"}},{"$f":"SUMIFS(KuluJuuni[Summa],KuluJuuni[Kategooria],KuluKokkuvõte[Kulud])","v":{"v":98,"d":"98.00"}},{"$f":"SUMIFS(KuluJuuli[Summa],KuluJuuli[Kategooria],KuluKokkuvõte[Kulud])","v":{"v":0,"d":"0.00"}},{"$f":"SUMIFS(KuluAug[Summa],KuluAug[Kategooria],KuluKokkuvõte[Kulud])","v":{"v":0,"d":"0.00"}},{"$f":"SUMIFS(KuluSep[Summa],KuluSep[Kategooria],KuluKokkuvõte[Kulud])","v":{"v":0,"d":"0.00"}},{"$f":"SUMIFS(KuluOkt[Summa],KuluOkt[Kategooria],KuluKokkuvõte[Kulud])","v":{"v":0,"d":"0.00"}},{"$f":"SUMIFS(KuluNov[Summa],KuluNov[Kategooria],KuluKokkuvõte[Kulud])","v":{"v":0,"d":"0.00"}},{"$f":"SUMIFS(KuluDets[Summa],KuluDets[Kategooria],KuluKokkuvõte[Kulud])","v":{"v":440,"d":"440.00"}},{"$f":"SUM(KuluKokkuvõte[[#This Row],[Jaan]:[Dets]])","v":{"v":1486,"d":"1,486.00"}}]
["Kulu 3",{"$f":"SUMIFS(KuluJaan[Summa],KuluJaan[Kategooria],KuluKokkuvõte[Kulud])","v":{"v":110,"d":"110.00"}},{"$f":"SUMIFS(KuluVeeb[Summa],KuluVeeb[Kategooria],KuluKokkuvõte[Kulud])","v":{"v":110,"d":"110.00"}},{"$f":"SUMIFS(KuluMär[Summa],KuluMär[Kategooria],KuluKokkuvõte[Kulud])","v":{"v":110,"d":"110.00"}},{"$f":"SUMIFS(KuluApr[Summa],KuluApr[Kategooria],KuluKokkuvõte[Kulud])","v":{"v":125,"d":"125.00"}},{"$f":"SUMIFS(KuluMai[Summa],KuluMai[Kategooria],KuluKokkuvõte[Kulud])","v":{"v":333,"d":"333.00"}},{"$f":"SUMIFS(KuluJuuni[Summa],KuluJuuni[Kategooria],KuluKokkuvõte[Kulud])","v":{"v":122,"d":"122.00"}},{"$f":"SUMIFS(KuluJuuli[Summa],KuluJuuli[Kategooria],KuluKokkuvõte[Kulud])","v":{"v":0,"d":"0.00"}},{"$f":"SUMIFS(KuluAug[Summa],KuluAug[Kategooria],KuluKokkuvõte[Kulud])","v":{"v":0,"d":"0.00"}},{"$f":"SUMIFS(KuluSep[Summa],KuluSep[Kategooria],KuluKokkuvõte[Kulud])","v":{"v":0,"d":"0.00"}},{"$f":"SUMIFS(KuluOkt[Summa],KuluOkt[Kategooria],KuluKokkuvõte[Kulud])","v":{"v":0,"d":"0.00"}},{"$f":"SUMIFS(KuluNov[Summa],KuluNov[Kategooria],KuluKokkuvõte[Kulud])","v":{"v":0,"d":"0.00"}},{"$f":"SUMIFS(KuluDets[Summa],KuluDets[Kategooria],KuluKokkuvõte[Kulud])","v":{"v":122,"d":"122.00"}},{"$f":"SUM(KuluKokkuvõte[[#This Row],[Jaan]:[Dets]])","v":{"v":1032,"d":"1,032.00"}}]
["Kulu 4",{"$f":"SUMIFS(KuluJaan[Summa],KuluJaan[Kategooria],KuluKokkuvõte[Kulud])","v":{"v":426,"d":"426.00"}},{"$f":"SUMIFS(KuluVeeb[Summa],KuluVeeb[Kategooria],KuluKokkuvõte[Kulud])","v":{"v":84,"d":"84.00"}},{"$f":"SUMIFS(KuluMär[Summa],KuluMär[Kategooria],KuluKokkuvõte[Kulud])","v":{"v":84,"d":"84.00"}},{"$f":"SUMIFS(KuluApr[Summa],KuluApr[Kategooria],KuluKokkuvõte[Kulud])","v":{"v":426,"d":"426.00"}},{"$f":"SUMIFS(KuluMai[Summa],KuluMai[Kategooria],KuluKokkuvõte[Kulud])","v":{"v":125,"d":"125.00"}},{"$f":"SUMIFS(KuluJuuni[Summa],KuluJuuni[Kategooria],KuluKokkuvõte[Kulud])","v":{"v":187,"d":"187.00"}},{"$f":"SUMIFS(KuluJuuli[Summa],KuluJuuli[Kategooria],KuluKokkuvõte[Kulud])","v":{"v":0,"d":"0.00"}},{"$f":"SUMIFS(KuluAug[Summa],KuluAug[Kategooria],KuluKokkuvõte[Kulud])","v":{"v":0,"d":"0.00"}},{"$f":"SUMIFS(KuluSep[Summa],KuluSep[Kategooria],KuluKokkuvõte[Kulud])","v":{"v":0,"d":"0.00"}},{"$f":"SUMIFS(KuluOkt[Summa],KuluOkt[Kategooria],KuluKokkuvõte[Kulud])","v":{"v":0,"d":"0.00"}},{"$f":"SUMIFS(KuluNov[Summa],KuluNov[Kategooria],KuluKokkuvõte[Kulud])","v":{"v":0,"d":"0.00"}},{"$f":"SUMIFS(KuluDets[Summa],KuluDets[Kategooria],KuluKokkuvõte[Kulud])","v":{"v":187,"d":"187.00"}},{"$f":"SUM(KuluKokkuvõte[[#This Row],[Jaan]:[Dets]])","v":{"v":1519,"d":"1,519.00"}}]
["Kulu 5",{"$f":"SUMIFS(KuluJaan[Summa],KuluJaan[Kategooria],KuluKokkuvõte[Kulud])","v":{"v":54,"d":"54.00"}},{"$f":"SUMIFS(KuluVeeb[Summa],KuluVeeb[Kategooria],KuluKokkuvõte[Kulud])","v":{"v":54,"d":"54.00"}},{"$f":"SUMIFS(KuluMär[Summa],KuluMär[Kategooria],KuluKokkuvõte[Kulud])","v":{"v":109,"d":"109.00"}},{"$f":"SUMIFS(KuluApr[Summa],KuluApr[Kategooria],KuluKokkuvõte[Kulud])","v":{"v":98,"d":"98.00"}},{"$f":"SUMIFS(KuluMai[Summa],KuluMai[Kategooria],KuluKokkuvõte[Kulud])","v":{"v":33,"d":"33.00"}},{"$f":"SUMIFS(KuluJuuni[Summa],KuluJuuni[Kategooria],KuluKokkuvõte[Kulud])","v":{"v":441,"d":"441.00"}},{"$f":"SUMIFS(KuluJuuli[Summa],KuluJuuli[Kategooria],KuluKokkuvõte[Kulud])","v":{"v":0,"d":"0.00"}},{"$f":"SUMIFS(KuluAug[Summa],KuluAug[Kategooria],KuluKokkuvõte[Kulud])","v":{"v":0,"d":"0.00"}},{"$f":"SUMIFS(KuluSep[Summa],KuluSep[Kategooria],KuluKokkuvõte[Kulud])","v":{"v":0,"d":"0.00"}},{"$f":"SUMIFS(KuluOkt[Summa],KuluOkt[Kategooria],KuluKokkuvõte[Kulud])","v":{"v":0,"d":"0.00"}},{"$f":"SUMIFS(KuluNov[Summa],KuluNov[Kategooria],KuluKokkuvõte[Kulud])","v":{"v":0,"d":"0.00"}},{"$f":"SUMIFS(KuluDets[Summa],KuluDets[Kategooria],KuluKokkuvõte[Kulud])","v":{"v":99,"d":"99.00"}},{"$f":"SUM(KuluKokkuvõte[[#This Row],[Jaan]:[Dets]])","v":{"v":888,"d":"888.00"}}]
["Kokku",{"$f":"SUBTOTAL(109,KuluKokkuvõte[Jaan])","v":{"v":861,"d":"861.00"}},{"$f":"SUBTOTAL(109,KuluKokkuvõte[Veebr])","v":{"v":861,"d":"861.00"}},{"$f":"SUBTOTAL(109,KuluKokkuvõte[Märts])","v":{"v":574,"d":"574.00"}},{"$f":"SUBTOTAL(109,KuluKokkuvõte[Apr])","v":{"v":817,"d":"817.00"}},{"$f":"SUBTOTAL(109,KuluKokkuvõte[Mai])","v":{"v":977,"d":"977.00"}},{"$f":"SUBTOTAL(109,KuluKokkuvõte[Juuni])","v":{"v":1049,"d":"1,049.00"}},{"$f":"SUBTOTAL(109,KuluKokkuvõte[Juuli])","v":{"v":0,"d":"0.00"}},{"$f":"SUBTOTAL(109,KuluKokkuvõte[Aug])","v":{"v":0,"d":"0.00"}},{"$f":"SUBTOTAL(109,KuluKokkuvõte[Sept])","v":{"v":0,"d":"0.00"}},{"$f":"SUBTOTAL(109,KuluKokkuvõte[Okt])","v":{"v":0,"d":"0.00"}},{"$f":"SUBTOTAL(109,KuluKokkuvõte[Nov])","v":{"v":0,"d":"0.00"}},{"$f":"SUBTOTAL(109,KuluKokkuvõte[Dets])","v":{"v":1049,"d":"1,049.00"}},{"$f":"SUBTOTAL(109,KuluKokkuvõte[Kokku])","v":{"v":6188,"d":"6,188.00"}}]

{"sheet":"jaan","index":2,"n_rows":9,"n_cols":5,"rows_kept":9,"merged":[[0,0,0,2]]}
["JAANUARI KULUD",null,null,"Kokkuvõte","Näpunäited"]
["Kuupäev","TELLIMUSE NR","Summa","Kategooria","Kirjeldus"]
[{"$f":"DATE(YEAR(TODAY()),1,4)","v":"2017-01-04"},"A-12345",{"v":33,"d":"33.00"},"Kulu 1","Tarvikud"]
[{"$f":"DATE(YEAR(TODAY()),1,5)","v":"2017-01-05"},"A-12346",{"v":238,"d":"238.00"},"Kulu 2"]
[null,null,{"v":342,"d":"342.00"},"Kulu 4"]
[null,null,{"v":110,"d":"110.00"},"Kulu 3"]
[null,null,{"v":84,"d":"84.00"},"Kulu 4"]
[null,null,{"v":54,"d":"54.00"},"Kulu 5"]
["Kokku",null,{"$f":"SUBTOTAL(109,KuluJaan[Summa])","v":{"v":861,"d":"861.00"}}]

{"sheet":"veebr","index":3,"n_rows":9,"n_cols":5,"rows_kept":9,"merged":[[0,0,0,2]]}
["VEEBRUARI KULUD",null,null,"Kokkuvõte","Näpunäited"]
["Kuupäev","TELLIMUSE NR","Summa","Kategooria","Kirjeldus"]
[{"$f":"DATE(YEAR(TODAY()),2,3)","v":"2017-02-03"},"A-12345",{"v":33,"d":"33.00"},"Kulu 1","Tarvikud"]
[{"$f":"DATE(YEAR(TODAY()),2,4)","v":"2017-02-04"},"A-12346",{"v":238,"d":"238.00"},"Kulu 2"]
[null,null,{"v":342,"d":"342.00"},"Kulu 1"]
[null,null,{"v":110,"d":"110.00"},"Kulu 3"]
[null,null,{"v":84,"d":"84.00"},"Kulu 4"]
[null,null,{"v":54,"d":"54.00"},"Kulu 5"]
["Kokku",null,{"$f":"SUBTOTAL(109,KuluVeeb[Summa])","v":{"v":861,"d":"861.00"}}]

{"sheet":"märts","index":4,"n_rows":9,"n_cols":5,"rows_kept":9,"merged":[[0,0,0,2]]}
["MÄRTSI KULUD",null,null,"Kokkuvõte","Näpunäited"]
["Kuupäev","TELLIMUSE NR","Summa","Kategooria","Kirjeldus"]
[{"$f":"DATE(YEAR(TODAY()),3,5)","v":"2017-03-05"},"A-12345",{"v":33,"d":"33.00"},"Kulu 1","Tarvikud"]
[{"$f":"DATE(YEAR(TODAY()),3,6)","v":"2017-03-06"},"A-12346",{"v":238,"d":"238.00"},"Kulu 2"]
[null,null,{"v":55,"d":"55.00"},"Kulu 5"]
[null,null,{"v":110,"d":"110.00"},"Kulu 3"]
[null,null,{"v":84,"d":"84.00"},"Kulu 4"]
[null,null,{"v":54,"d":"54.00"},"Kulu 5"]
["Kokku",null,{"$f":"SUBTOTAL(109,KuluMär[Summa])","v":{"v":574,"d":"574.00"}}]

{"sheet":"apr","index":5,"n_rows":9,"n_cols":5,"rows_kept":9,"merged":[[0,0,0,2]]}
["APRILLI KULUD",null,null,"Kokkuvõte","Näpunäited"]
["Kuupäev","TELLIMUSE NR","Summa","Kategooria","Kirjeldus"]
[{"$f":"DATE(YEAR(TODAY()),4,4)","v":"2017-04-04"},"A-12345",{"v":45,"d":"45.00"},"Kulu 1","Tarvikud"]
[{"$f":"DATE(YEAR(TODAY()),4,8)","v":"2017-04-08"},"A-12346",{"v":123,"d":"123.00"},"Kulu 2"]
[null,null,{"v":342,"d":"342.00"},"Kulu 4"]
[null,null,{"v":125,"d":"125.00"},"Kulu 3"]
[null,null,{"v":84,"d":"84.00"},"Kulu 4"]
[null,null,{"v":98,"d":"98.00"},"Kulu 5"]
["Kokku",null,{"$f":"SUBTOTAL(109,KuluApr[Summa])","v":{"v":817,"d":"817.00"}}]

{"sheet":"mai","index":6,"n_rows":9,"n_cols":5,"rows_kept":9,"merged":[[0,0,0,2]]}
["MAI KULUD",null,null,"Kokkuvõte","Näpunäited"]
["Kuupäev","TELLIMUSE NR","Summa","Kategooria","Kirjeldus"]
[{"$f":"DATE(YEAR(TODAY()),5,3)","v":"2017-05-03"},"A-12345",{"v":33,"d":"33.00"},"Kulu 1","Tarvikud"]
[{"$f":"DATE(YEAR(TODAY()),5,8)","v":"2017-05-08"},"A-12346",{"v":111,"d":"111.00"},"Kulu 2"]
[null,null,{"v":342,"d":"342.00"},"Kulu 1"]
[null,null,{"v":333,"d":"333.00"},"Kulu 3"]
[null,null,{"v":125,"d":"125.00"},"Kulu 4"]
[null,null,{"v":33,"d":"33.00"},"Kulu 5"]
["Kokku",null,{"$f":"SUBTOTAL(109,KuluMai[Summa])","v":{"v":977,"d":"977.00"}}]

{"sheet":"juuni","index":7,"n_rows":9,"n_cols":5,"rows_kept":9,"merged":[[0,0,0,2]]}
["JUUNI KULUD",null,null,"Kokkuvõte","Näpunäited"]
["Kuupäev","TELLIMUSE NR","Summa","Kategooria","Kirjeldus"]
[{"$f":"DATE(YEAR(TODAY()),6,7)","v":"2017-06-07"},"A-12345",{"v":201,"d":"201.00"},"Kulu 1","Tarvikud"]
[{"$f":"DATE(YEAR(TODAY()),6,8)","v":"2017-06-08"},"A-12346",{"v":98,"d":"98.00"},"Kulu 2"]
[null,null,{"v":342,"d":"342.00"},"Kulu 5"]
[null,null,{"v":122,"d":"122.00"},"Kulu 3"]
[null,null,{"v":187,"d":"187.00"},"Kulu 4"]
[null,null,{"v":99,"d":"99.00"},"Kulu 5"]
["Kokku",null,{"$f":"SUBTOTAL(109,KuluJuuni[Summa])","v":{"v":1049,"d":"1,049.00"}}]

{"sheet":"juuli","index":8,"n_rows":9,"n_cols":5,"rows_kept":9,"merged":[[0,0,0,2]]}
["JUULI KULUD",null,null,"Kokkuvõte","Näpunäited"]
["Kuupäev","TELLIMUSE NR","Summa","Kategooria","Kirjeldus"]
[{"$f":"DATE(YEAR(TODAY()),7,9)","v":"2017-07-09"},"A-12345",null,"Kulu 1","Tarvikud"]
[{"$f":"DATE(YEAR(TODAY()),7,14)","v":"2017-07-14"},"A-12346",null,"Kulu 2"]
[{"$nulls":3},"Kulu 2"]
[{"$nulls":3},"Kulu 3"]
[{"$nulls":3},"Kulu 4"]
[{"$nulls":3},"Kulu 5"]
["Kokku",null,{"$f":"SUBTOTAL(109,KuluJuuli[Summa])","v":{"v":0,"d":"0.00"}}]

{"sheet":"aug","index":9,"n_rows":9,"n_cols":5,"rows_kept":9,"merged":[[0,0,0,2]]}
["AUGUSTI KULUD",null,null,"Kokkuvõte","Näpunäited"]
["Kuupäev","TELLIMUSE NR","Summa","Kategooria","Kirjeldus"]
[{"$f":"DATE(YEAR(TODAY()),8,8)","v":"2017-08-08"},"A-12345",null,"Kulu 1","Tarvikud"]
[{"$f":"DATE(YEAR(TODAY()),8,9)","v":"2017-08-09"},"A-12346",null,"Kulu 2"]
[{"$nulls":3},"Kulu 2"]
[{"$nulls":3},"Kulu 3"]
[{"$nulls":3},"Kulu 4"]
[{"$nulls":3},"Kulu 5"]
["Kokku",null,{"$f":"SUBTOTAL(109,KuluAug[Summa])","v":{"v":0,"d":"0.00"}}]

{"sheet":"sept","index":10,"n_rows":9,"n_cols":5,"rows_kept":9,"merged":[[0,0,0,2]]}
["SEPTEMBRI KULUD",null,null,"Kokkuvõte","Näpunäited"]
["Kuupäev","TELLIMUSE NR","Summa","Kategooria","Kirjeldus"]
[{"$f":"DATE(YEAR(TODAY()),9,9)","v":"2017-09-09"},"A-12345",null,"Kulu 1","Tarvikud"]
[{"$f":"DATE(YEAR(TODAY()),9,15)","v":"2017-09-15"},"A-12346",null,"Kulu 2"]
[{"$nulls":3},"Kulu 2"]
[{"$nulls":3},"Kulu 3"]
[{"$nulls":3},"Kulu 4"]
[{"$nulls":3},"Kulu 5"]
["Kokku",null,{"$f":"SUBTOTAL(109,KuluSep[Summa])","v":{"v":0,"d":"0.00"}}]

{"sheet":"okt","index":11,"n_rows":9,"n_cols":5,"rows_kept":9,"merged":[[0,0,0,2]]}
["OKTOOBRI KULUD",null,null,"Kokkuvõte","Näpunäited"]
["Kuupäev","TELLIMUSE NR","Summa","Kategooria","Kirjeldus"]
[{"$f":"DATE(YEAR(TODAY()),10,10)","v":"2017-10-10"},"A-12345",null,"Kulu 1","Tarvikud"]
[{"$f":"DATE(YEAR(TODAY()),10,21)","v":"2017-10-21"},"A-12346",null,"Kulu 2"]
[{"$nulls":3},"Kulu 2"]
[{"$nulls":3},"Kulu 3"]
[{"$nulls":3},"Kulu 4"]
[{"$nulls":3},"Kulu 5"]
["Kokku",null,{"$f":"SUBTOTAL(109,KuluOkt[Summa])","v":{"v":0,"d":"0.00"}}]

{"sheet":"nov","index":12,"n_rows":9,"n_cols":5,"rows_kept":9,"merged":[[0,0,0,2]]}
["NOVEMBRI KULUD",null,null,"Kokkuvõte","Näpunäited"]
["Kuupäev","TELLIMUSE NR","Summa","Kategooria","Kirjeldus"]
[{"$f":"DATE(YEAR(TODAY()),11,14)","v":"2017-11-14"},"A-12345",null,"Kulu 1","Tarvikud"]
[{"$f":"DATE(YEAR(TODAY()),11,21)","v":"2017-11-21"},"A-12346",null,"Kulu 2"]
[{"$nulls":3},"Kulu 2"]
[{"$nulls":3},"Kulu 3"]
[{"$nulls":3},"Kulu 4"]
[{"$nulls":3},"Kulu 5"]
["Kokku",null,{"$f":"SUBTOTAL(109,KuluNov[Summa])","v":{"v":0,"d":"0.00"}}]

{"sheet":"dets","index":13,"n_rows":9,"n_cols":5,"rows_kept":9,"merged":[[0,0,0,2]]}
["DETSEMBRI KULUD",null,null,"Kokkuvõte","Näpunäited"]
["Kuupäev","TELLIMUSE NR","Summa","Kategooria","Kirjeldus"]
[{"$f":"DATE(YEAR(TODAY()),12,2)","v":"2017-12-02"},"A-12345",{"v":201,"d":"201.00"},"Kulu 1","Tarvikud"]
[{"$f":"DATE(YEAR(TODAY()),12,24)","v":"2017-12-24"},"A-12346",{"v":98,"d":"98.00"},"Kulu 2"]
[null,null,{"v":342,"d":"342.00"},"Kulu 2"]
[null,null,{"v":122,"d":"122.00"},"Kulu 3"]
[null,null,{"v":187,"d":"187.00"},"Kulu 4"]
[null,null,{"v":99,"d":"99.00"},"Kulu 5"]
["Kokku",null,{"$f":"SUBTOTAL(109,KuluDets[Summa])","v":{"v":1049,"d":"1,049.00"}}]